[Event "*** Titled Tuesday 3|2 Blitz"]
[Site "Chess.com"]
[Date "2016.03.01"]
[Round "1"]
[White "chessdude"]
[Black "Kawhi_Leonard2"]
[Result "1-0"]
[WhiteElo "2377"]
[BlackElo "2058"]
[TimeControl "180+2"]
[EndTime "17:02:42 PST"]
[Termination "chessdude won by resignation"]

1. e4 {[%clk 0:03:00.1]} 1... c5 {[%clk 0:02:56.9]} 2. Nf3 {[%clk 0:03:00.4]}
2... d6 {[%clk 0:02:56.6]} 3. d4 {[%clk 0:02:59.4]} 3... cxd4 {[%clk 0:02:57.7]}
4. Nxd4 {[%clk 0:03:01]} 4... Nf6 {[%clk 0:02:58.9]} 5. Nc3 {[%clk 0:03:02.6]}
5... g6 {[%clk 0:03:00]} 6. Be3 {[%clk 0:03:02.9]} 6... Bg7 {[%clk 0:03:01.1]}
7. f3 {[%clk 0:03:04.2]} 7... Nc6 {[%clk 0:03:02.1]} 8. Qd2 {[%clk 0:03:05.6]}
8... O-O {[%clk 0:03:03.4]} 9. g4 {[%clk 0:03:06.8]} 9... Nxd4 {[%clk
0:03:02.7]} 10. Bxd4 {[%clk 0:03:06.9]} 10... Be6 {[%clk 0:03:04.2]} 11. h4
{[%clk 0:03:04.5]} 11... Qa5 {[%clk 0:02:55.9]} 12. a3 {[%clk 0:03:03.2]} 12...
Nd7 {[%clk 0:02:49.3]} 13. Bxg7 {[%clk 0:03:01.1]} 13... Kxg7 {[%clk 0:02:49.4]}
14. h5 {[%clk 0:03:02.5]} 14... g5 {[%clk 0:02:44.5]} 15. h6+ {[%clk 0:03:02.8]}
15... Kg8 {[%clk 0:02:34.9]} 16. O-O-O {[%clk 0:02:42.9]} 16... Rac8 {[%clk
0:02:27.1]} 17. Bb5 {[%clk 0:02:41.7]} 17... Rxc3 {[%clk 0:02:15]} 18. Qxg5+
{[%clk 0:02:41.7]} 1-0

[Event "*** Titled Tuesday 3|2 Blitz"]
[Site "Chess.com"]
[Date "2016.03.01"]
[Round "1"]
[White "pKiLz5Rn9b"]
[Black "Recombinant"]
[Result "1-0"]
[WhiteElo "2500"]
[BlackElo "2214"]
[TimeControl "180+2"]
[EndTime "17:04:02 PST"]
[Termination "pKiLz5Rn9b won by resignation"]

1. e4 {[%clk 0:03:01.9]} 1... d6 {[%clk 0:03:00.3]} 2. d4 {[%clk 0:03:02.3]}
2... Nf6 {[%clk 0:02:59.3]} 3. Nc3 {[%clk 0:03:03.9]} 3... g6 {[%clk 0:03:00.1]}
4. Nf3 {[%clk 0:03:05.5]} 4... Bg7 {[%clk 0:03:00]} 5. h3 {[%clk 0:03:07.2]}
5... O-O {[%clk 0:03:00]} 6. Be3 {[%clk 0:03:08.9]} 6... b6 {[%clk 0:03:01.3]}
7. Be2 {[%clk 0:03:08]} 7... Bb7 {[%clk 0:03:02.4]} 8. d5 {[%clk 0:03:08.2]}
8... c6 {[%clk 0:03:02.9]} 9. O-O {[%clk 0:03:08.3]} 9... Nbd7 {[%clk
0:03:04.1]} 10. a4 {[%clk 0:03:07.2]} 10... Nc5 {[%clk 0:03:01.9]} 11. a5 {[%clk
0:03:01.3]} 11... Ncxe4 {[%clk 0:02:58.7]} 12. Nxe4 {[%clk 0:02:57.6]} 12...
Nxe4 {[%clk 0:02:58.7]} 13. a6 {[%clk 0:02:59.2]} 13... Bc8 {[%clk 0:02:59.4]}
14. dxc6 {[%clk 0:02:59.3]} 14... Bxb2 {[%clk 0:02:54.4]} 15. Bh6 {[%clk
0:02:50.3]} 15... Nc3 {[%clk 0:02:46.7]} 16. Qd2 {[%clk 0:02:44.9]} 16... Nxe2+
{[%clk 0:02:46.6]} 17. Qxe2 {[%clk 0:02:46.8]} 17... Bxa1 {[%clk 0:02:41.6]} 18.
Bxf8 {[%clk 0:02:44.5]} 18... Qxf8 {[%clk 0:02:42.2]} 19. Rxa1 {[%clk
0:02:44.8]} 19... e5 {[%clk 0:02:36.3]} 20. Rd1 {[%clk 0:02:43.4]} 20... Be6
{[%clk 0:02:23]} 21. Ng5 {[%clk 0:02:44.2]} 21... Bf5 {[%clk 0:02:13.4]} 22. g4
{[%clk 0:02:37.3]} 22... Bc8 {[%clk 0:02:11.7]} 23. Ne4 {[%clk 0:02:35.8]} 23...
Be6 {[%clk 0:02:08.2]} 24. Nxd6 {[%clk 0:02:35.9]} 24... Rd8 {[%clk 0:02:08.3]}
25. Qxe5 {[%clk 0:02:37.1]} 25... Qe7 {[%clk 0:02:07.7]} 26. Rd3 {[%clk
0:02:35.4]} 26... Qc7 {[%clk 0:02:06.3]} 27. Nf5 {[%clk 0:02:29.8]} 1-0

[Event "*** Titled Tuesday 3|2 Blitz"]
[Site "Chess.com"]
[Date "2016.03.01"]
[Round "1"]
[White "ArnaudovP"]
[Black "GMHess"]
[Result "1-0"]
[WhiteElo "2311"]
[BlackElo "2626"]
[TimeControl "180+2"]
[EndTime "17:05:11 PST"]
[Termination "ArnaudovP won by resignation"]

1. d4 {[%clk 0:02:57.2]} 1... g6 {[%clk 0:02:53.4]} 2. c4 {[%clk 0:02:57.3]}
2... Bg7 {[%clk 0:02:44.8]} 3. Nc3 {[%clk 0:02:57.6]} 3... c5 {[%clk 0:02:46.1]}
4. d5 {[%clk 0:02:57.7]} 4... Bxc3+ {[%clk 0:02:46.9]} 5. bxc3 {[%clk
0:02:59.1]} 5... f5 {[%clk 0:02:48.6]} 6. e4 {[%clk 0:03:00.3]} 6... fxe4 {[%clk
0:02:50.5]} 7. f3 {[%clk 0:03:01.2]} 7... e5 {[%clk 0:02:51.9]} 8. Qc2 {[%clk
0:02:54.8]} 8... d6 {[%clk 0:02:37.5]} 9. fxe4 {[%clk 0:02:52.8]} 9... Qa5
{[%clk 0:02:32.7]} 10. Nf3 {[%clk 0:02:51.4]} 10... Nd7 {[%clk 0:02:26.2]} 11.
Be2 {[%clk 0:02:45.6]} 11... Nb6 {[%clk 0:02:27.3]} 12. O-O {[%clk 0:02:45]}
12... Bd7 {[%clk 0:01:15.1]} 13. Ng5 {[%clk 0:02:43.1]} 13... Nh6 {[%clk
0:00:49.2]} 14. Ne6 {[%clk 0:02:25.6]} 14... Nf7 {[%clk 0:00:49]} 15. Nc7+
{[%clk 0:02:14.5]} 15... Ke7 {[%clk 0:00:49.2]} 16. Nxa8 {[%clk 0:02:14.5]}
16... Rxa8 {[%clk 0:00:51.1]} 17. Qd3 {[%clk 0:02:13.7]} 17... Be8 {[%clk
0:00:31.2]} 18. Bg4 {[%clk 0:02:10.5]} 18... Kd8 {[%clk 0:00:19.5]} 19. Be6
{[%clk 0:02:09.6]} 1-0

[Event "*** Titled Tuesday 3|2 Blitz"]
[Site "Chess.com"]
[Date "2016.03.01"]
[Round "1"]
[White "SenseiJulio"]
[Black "MMSANCHEZ"]
[Result "1-0"]
[WhiteElo "2615"]
[BlackElo "2274"]
[TimeControl "180+2"]
[EndTime "17:05:23 PST"]
[Termination "SenseiJulio won by resignation"]

1. d4 {[%clk 0:02:58.4]} 1... Nf6 {[%clk 0:03:01]} 2. c4 {[%clk 0:02:57.4]} 2...
g6 {[%clk 0:03:02.5]} 3. Nc3 {[%clk 0:02:57.6]} 3... d5 {[%clk 0:03:03.6]} 4.
cxd5 {[%clk 0:02:59.3]} 4... Nxd5 {[%clk 0:03:05.2]} 5. e4 {[%clk 0:03:00.9]}
5... Nxc3 {[%clk 0:03:06.5]} 6. bxc3 {[%clk 0:03:02.8]} 6... Bg7 {[%clk
0:03:07.7]} 7. Qa4+ {[%clk 0:03:04.5]} 7... Qd7 {[%clk 0:03:07.1]} 8. Qa3 {[%clk
0:03:01.4]} 8... O-O {[%clk 0:03:03.4]} 9. Nf3 {[%clk 0:03:02.3]} 9... b6 {[%clk
0:03:00.8]} 10. Bd3 {[%clk 0:02:59.3]} 10... Bb7 {[%clk 0:03:01.3]} 11. O-O
{[%clk 0:02:59.4]} 11... c5 {[%clk 0:03:00.7]} 12. Be3 {[%clk 0:02:42.4]} 12...
cxd4 {[%clk 0:02:59.1]} 13. cxd4 {[%clk 0:02:42.3]} 13... Nc6 {[%clk 0:03:00.2]}
14. d5 {[%clk 0:02:19.3]} 14... Na5 {[%clk 0:02:37.6]} 15. Rac1 {[%clk
0:02:06.9]} 15... Rfc8 {[%clk 0:02:34.3]} 16. Nd4 {[%clk 0:01:58.4]} 16... Rxc1
{[%clk 0:02:24.1]} 17. Rxc1 {[%clk 0:02:00.3]} 17... Rc8 {[%clk 0:02:24.4]} 18.
Rxc8+ {[%clk 0:01:55.7]} 18... Bxc8 {[%clk 0:02:22.8]} 19. Bb5 {[%clk
0:01:51.1]} 19... Qc7 {[%clk 0:02:21.5]} 20. Nc6 {[%clk 0:01:48.4]} 20... Nxc6
{[%clk 0:02:02.5]} 21. Bxc6 {[%clk 0:01:50.3]} 21... Bd7 {[%clk 0:01:27.8]} 22.
Qxe7 {[%clk 0:01:49]} 22... b5 {[%clk 0:01:00.7]} 23. Qxd7 {[%clk 0:01:41.5]}
23... Qa5 {[%clk 0:01:01.5]} 24. Qe8+ {[%clk 0:01:40.2]} 24... Bf8 {[%clk
0:01:02.7]} 25. g3 {[%clk 0:01:41.4]} 25... Qe1+ {[%clk 0:01:03.4]} 26. Kg2
{[%clk 0:01:42.3]} 26... Kg7 {[%clk 0:01:04.2]} 27. Bd4+ {[%clk 0:01:40.4]}
27... f6 {[%clk 0:01:04.9]} 28. Bxf6+ {[%clk 0:01:39.4]} 28... Kxf6 {[%clk
0:01:05.9]} 29. Qxf8+ {[%clk 0:01:40.9]} 1-0

[Event "*** Titled Tuesday 3|2 Blitz"]
[Site "Chess.com"]
[Date "2016.03.01"]
[Round "1"]
[White "FairChess_on_YouTube"]
[Black "oskariot"]
[Result "1-0"]
[WhiteElo "2743"]
[BlackElo "2308"]
[TimeControl "180+2"]
[EndTime "17:06:27 PST"]
[Termination "FairChess_on_YouTube won by resignation"]

1. d4 {[%clk 0:03:00.8]} 1... Nf6 {[%clk 0:03:00.8]} 2. c4 {[%clk 0:03:01.2]}
2... g6 {[%clk 0:03:00.3]} 3. Nc3 {[%clk 0:03:01.4]} 3... Bg7 {[%clk 0:03:01.4]}
4. e4 {[%clk 0:03:01.9]} 4... d6 {[%clk 0:03:02.7]} 5. Nf3 {[%clk 0:03:01.7]}
5... O-O {[%clk 0:03:04.2]} 6. Be2 {[%clk 0:03:03]} 6... e5 {[%clk 0:03:05.8]}
7. d5 {[%clk 0:03:04.5]} 7... a5 {[%clk 0:03:01.4]} 8. Be3 {[%clk 0:03:03.5]}
8... Na6 {[%clk 0:02:54]} 9. Nd2 {[%clk 0:03:03.6]} 9... Nc5 {[%clk 0:02:37.2]}
10. a3 {[%clk 0:03:02.9]} 10... Ne8 {[%clk 0:01:52.3]} 11. b4 {[%clk 0:03:02]}
11... axb4 {[%clk 0:01:52]} 12. axb4 {[%clk 0:03:03.9]} 12... Rxa1 {[%clk
0:01:52.8]} 13. Qxa1 {[%clk 0:03:05.8]} 13... Nd7 {[%clk 0:01:51.6]} 14. O-O
{[%clk 0:02:55.4]} 14... f5 {[%clk 0:01:51.6]} 15. f3 {[%clk 0:02:56.5]} 15...
f4 {[%clk 0:01:49.4]} 16. Bf2 {[%clk 0:02:57.4]} 16... g5 {[%clk 0:01:51]} 17.
c5 {[%clk 0:02:57.7]} 17... h5 {[%clk 0:01:50.8]} 18. Qa8 {[%clk 0:02:42]} 18...
Ndf6 {[%clk 0:01:35.5]} 19. Nb5 {[%clk 0:02:37.2]} 19... Bh6 {[%clk 0:00:56.7]}
20. Na7 {[%clk 0:02:21.5]} 20... Ng7 {[%clk 0:00:57.4]} 21. Qxc8 {[%clk
0:02:20.7]} 21... Qxc8 {[%clk 0:00:59.3]} 22. Nxc8 {[%clk 0:02:22.2]} 22... Rxc8
{[%clk 0:01:01.2]} 23. Ra1 {[%clk 0:02:23.5]} 23... g4 {[%clk 0:00:59.9]} 24.
Nc4 {[%clk 0:02:17.7]} 24... Nge8 {[%clk 0:00:52.2]} 25. Ra7 {[%clk 0:02:17.2]}
25... Rb8 {[%clk 0:00:51.4]} 26. Na5 {[%clk 0:02:14.3]} 26... g3 {[%clk
0:00:49.6]} 27. Be1 {[%clk 0:02:11.5]} 27... dxc5 {[%clk 0:00:48.7]} 28. bxc5
{[%clk 0:02:11.6]} 28... Bf8 {[%clk 0:00:49.8]} 29. Nxb7 {[%clk 0:02:00.9]}
29... Rxb7 {[%clk 0:00:24.5]} 30. Rxb7 {[%clk 0:02:01]} 30... Bxc5+ {[%clk
0:00:26.4]} 31. Kh1 {[%clk 0:02:01.5]} 31... Bb6 {[%clk 0:00:18.2]} 32. hxg3
{[%clk 0:01:58.9]} 1-0

[Event "*** Titled Tuesday 3|2 Blitz"]
[Site "Chess.com"]
[Date "2016.03.01"]
[Round "1"]
[White "Miguelito"]
[Black "spectralsoul"]
[Result "0-1"]
[WhiteElo "2286"]
[BlackElo "2543"]
[TimeControl "180+2"]
[EndTime "17:07:01 PST"]
[Termination "spectralsoul won by resignation"]

1. e4 {[%clk 0:02:14.4]} 1... d6 {[%clk 0:03:00.5]} 2. d4 {[%clk 0:02:15.1]}
2... Nf6 {[%clk 0:03:02.1]} 3. Nc3 {[%clk 0:02:16.7]} 3... g6 {[%clk 0:03:03.7]}
4. f4 {[%clk 0:02:17.3]} 4... Bg7 {[%clk 0:03:04.1]} 5. Nf3 {[%clk 0:02:18.7]}
5... O-O {[%clk 0:03:05.3]} 6. Bd3 {[%clk 0:02:19.8]} 6... Na6 {[%clk
0:02:59.8]} 7. e5 {[%clk 0:02:19.8]} 7... Nd7 {[%clk 0:02:56]} 8. O-O {[%clk
0:02:19]} 8... c5 {[%clk 0:02:53]} 9. exd6 {[%clk 0:02:03.7]} 9... exd6 {[%clk
0:02:52.5]} 10. Ne4 {[%clk 0:01:52.1]} 10... Qb6 {[%clk 0:02:38]} 11. c3 {[%clk
0:01:42.5]} 11... cxd4 {[%clk 0:02:37.4]} 12. Nxd4 {[%clk 0:01:42.3]} 12... Nac5
{[%clk 0:02:25.6]} 13. Bc2 {[%clk 0:01:39.6]} 13... Nxe4 {[%clk 0:02:20.1]} 14.
Bxe4 {[%clk 0:01:40.4]} 14... Nc5 {[%clk 0:02:21.5]} 15. Bd5 {[%clk 0:01:38.7]}
15... Ne6 {[%clk 0:02:19.1]} 16. Bxe6 {[%clk 0:01:38.4]} 16... fxe6 {[%clk
0:02:19.6]} 17. Kh1 {[%clk 0:01:38.7]} 17... e5 {[%clk 0:02:19.7]} 18. fxe5
{[%clk 0:01:38.6]} 18... Rxf1+ {[%clk 0:02:20.3]} 19. Qxf1 {[%clk 0:01:39.4]}
19... dxe5 {[%clk 0:02:22.2]} 20. Nb3 {[%clk 0:01:34.3]} 20... a5 {[%clk
0:02:15.5]} 21. Qc4+ {[%clk 0:01:34.4]} 21... Be6 {[%clk 0:02:15.7]} 22. Qc5
{[%clk 0:01:35]} 22... Qa6 {[%clk 0:02:09.2]} 23. Be3 {[%clk 0:01:35.4]} 23...
a4 {[%clk 0:02:08.5]} 24. Nd2 {[%clk 0:01:35.4]} 24... Qe2 {[%clk 0:01:49.2]}
25. Rg1 {[%clk 0:01:17.1]} 25... Rc8 {[%clk 0:01:21.5]} 26. Qd6 {[%clk
0:01:12.9]} 26... Bxa2 {[%clk 0:01:15.1]} 27. Qb6 {[%clk 0:00:52.2]} 27... Bd5
{[%clk 0:01:12.2]} 28. c4 {[%clk 0:00:49.4]} 28... Bc6 {[%clk 0:01:13]} 29. Nf1
{[%clk 0:00:45.4]} 29... Qxc4 {[%clk 0:00:47.6]} 30. Ng3 {[%clk 0:00:44.5]}
30... h5 {[%clk 0:00:48.8]} 31. Rc1 {[%clk 0:00:42.9]} 31... Qd5 {[%clk
0:00:45.5]} 32. Rg1 {[%clk 0:00:41.2]} 32... h4 {[%clk 0:00:46.4]} 0-1

[Event "*** Titled Tuesday 3|2 Blitz"]
[Site "Chess.com"]
[Date "2016.03.01"]
[Round "1"]
[White "lionheart95"]
[Black "Iwannabetheguy"]
[Result "1-0"]
[WhiteElo "2357"]
[BlackElo "2022"]
[TimeControl "180+2"]
[EndTime "17:07:48 PST"]
[Termination "lionheart95 won by resignation"]

1. e4 {[%clk 0:02:58.1]} 1... e5 {[%clk 0:03:00.7]} 2. Nf3 {[%clk 0:02:59]} 2...
Nc6 {[%clk 0:03:02]} 3. Bb5 {[%clk 0:03:00]} 3... a6 {[%clk 0:03:03.3]} 4. Bxc6
{[%clk 0:03:00.9]} 4... dxc6 {[%clk 0:03:04.1]} 5. O-O {[%clk 0:03:01.8]} 5...
Bg4 {[%clk 0:03:05.5]} 6. h3 {[%clk 0:03:01.7]} 6... h5 {[%clk 0:03:07]} 7. d3
{[%clk 0:03:01.9]} 7... Qf6 {[%clk 0:03:08.4]} 8. Be3 {[%clk 0:03:02.2]} 8...
Bxf3 {[%clk 0:03:03.2]} 9. Qxf3 {[%clk 0:03:02.8]} 9... Qxf3 {[%clk 0:03:04.2]}
10. gxf3 {[%clk 0:03:04.4]} 10... Bd6 {[%clk 0:03:04.9]} 11. Nc3 {[%clk
0:03:04.4]} 11... Ne7 {[%clk 0:03:06.3]} 12. Ne2 {[%clk 0:03:04.8]} 12... Ng6
{[%clk 0:03:07.3]} 13. Rfb1 {[%clk 0:03:06]} 13... O-O-O {[%clk 0:02:43.6]} 14.
b4 {[%clk 0:03:05.8]} 14... Rdf8 {[%clk 0:02:27.4]} 15. a4 {[%clk 0:03:05.4]}
15... f5 {[%clk 0:02:28]} 16. b5 {[%clk 0:03:06]} 16... f4 {[%clk 0:02:14.7]}
17. Bd2 {[%clk 0:03:04.5]} 17... Nh4 {[%clk 0:02:08.6]} 18. Bc3 {[%clk
0:02:57.6]} 18... Nxf3+ {[%clk 0:02:04.5]} 19. Kf1 {[%clk 0:02:56.7]} 19... Rh6
{[%clk 0:01:47.2]} 20. bxc6 {[%clk 0:02:54.3]} 20... bxc6 {[%clk 0:01:46.7]} 21.
Ng1 {[%clk 0:02:54.2]} 21... Nxg1 {[%clk 0:01:41]} 22. Kxg1 {[%clk 0:02:55.2]}
22... Rg6+ {[%clk 0:01:42]} 23. Kh2 {[%clk 0:02:55.6]} 23... Rff6 {[%clk
0:01:37.9]} 24. Rg1 {[%clk 0:02:55.7]} 24... Kd7 {[%clk 0:01:35.1]} 25. Rab1
{[%clk 0:02:56.1]} 25... Rxg1 {[%clk 0:01:30.5]} 26. Rxg1 {[%clk 0:02:55.7]}
26... g6 {[%clk 0:01:23.5]} 27. Rb1 {[%clk 0:02:55.8]} 27... Re6 {[%clk
0:01:17.4]} 28. Rb7 {[%clk 0:02:51]} 28... Bc5 {[%clk 0:01:17.8]} 29. f3 {[%clk
0:02:48.1]} 29... Kc8 {[%clk 0:01:11.2]} 30. Rb1 {[%clk 0:02:47]} 30... g5
{[%clk 0:01:09.6]} 31. Rd1 {[%clk 0:02:46.4]} 31... Rg6 {[%clk 0:01:07.9]} 32.
Rd2 {[%clk 0:02:46.4]} 32... g4 {[%clk 0:01:07.9]} 33. Rg2 {[%clk 0:02:37.9]}
33... g3+ {[%clk 0:01:07.5]} 34. Kh1 {[%clk 0:02:37.6]} 34... Bd4 {[%clk
0:01:07.7]} 35. Bxd4 {[%clk 0:02:33.7]} 35... exd4 {[%clk 0:01:08.1]} 36. e5
{[%clk 0:02:35.2]} 36... Kd7 {[%clk 0:01:08.1]} 37. Re2 {[%clk 0:02:34.8]} 37...
Ke6 {[%clk 0:01:08.1]} 38. Re4 {[%clk 0:02:34.1]} 38... c5 {[%clk 0:01:05.4]}
39. Rxf4 {[%clk 0:02:32]} 39... Kxe5 {[%clk 0:01:05.3]} 40. Re4+ {[%clk
0:02:32]} 40... Kd5 {[%clk 0:01:06.3]} 41. Kg2 {[%clk 0:02:33]} 41... c6 {[%clk
0:01:04.7]} 42. f4 {[%clk 0:02:32.8]} 42... c4 {[%clk 0:01:04.3]} 43. Re5+
{[%clk 0:02:33.7]} 43... Kd6 {[%clk 0:01:04]} 44. Rxh5 {[%clk 0:02:34.4]} 44...
cxd3 {[%clk 0:01:04.4]} 45. cxd3 {[%clk 0:02:34.7]} 45... c5 {[%clk 0:01:03.9]}
46. Rg5 {[%clk 0:02:32.7]} 46... Rxg5 {[%clk 0:00:56.5]} 47. fxg5 {[%clk
0:02:34.6]} 47... c4 {[%clk 0:00:57.9]} 48. dxc4 {[%clk 0:02:29]} 48... d3
{[%clk 0:00:58.5]} 49. g6 {[%clk 0:02:30.4]} 49... d2 {[%clk 0:00:59.7]} 50. g7
{[%clk 0:02:31.1]} 50... d1=Q {[%clk 0:00:58.6]} 51. g8=Q {[%clk 0:02:32.2]}
51... Qe2+ {[%clk 0:00:49.2]} 52. Kxg3 {[%clk 0:02:32.2]} 52... Qe3+ {[%clk
0:00:48.2]} 53. Kh2 {[%clk 0:02:31.1]} 53... Qe2+ {[%clk 0:00:34.3]} 54. Kh1
{[%clk 0:02:26.3]} 54... Qe4+ {[%clk 0:00:31.9]} 55. Kh2 {[%clk 0:02:24.6]}
55... Qe2+ {[%clk 0:00:32.8]} 56. Qg2 {[%clk 0:02:25.3]} 56... Qxc4 {[%clk
0:00:33.5]} 57. Qg6+ {[%clk 0:02:25.6]} 57... Kc5 {[%clk 0:00:33.8]} 58. Qg5+
{[%clk 0:02:23.8]} 58... Kb4 {[%clk 0:00:32.2]} 59. Qg4 {[%clk 0:02:24.5]} 59...
Qxg4 {[%clk 0:00:32.3]} 60. hxg4 {[%clk 0:02:26.2]} 60... Kxa4 {[%clk
0:00:33.8]} 61. g5 {[%clk 0:02:27.8]} 61... Kb3 {[%clk 0:00:35.5]} 62. g6 {[%clk
0:02:29.4]} 62... a5 {[%clk 0:00:36.8]} 63. g7 {[%clk 0:02:31]} 63... a4 {[%clk
0:00:38.5]} 64. g8=Q+ {[%clk 0:02:32.7]} 64... Kb2 {[%clk 0:00:39.5]} 65. Qb8+
{[%clk 0:02:32.5]} 65... Ka2 {[%clk 0:00:39.9]} 66. Qb4 {[%clk 0:02:30.1]} 66...
a3 {[%clk 0:00:40.5]} 67. Kg2 {[%clk 0:02:30.2]} 1-0

[Event "*** Titled Tuesday 3|2 Blitz"]
[Site "Chess.com"]
[Date "2016.03.01"]
[Round "1"]
[White "Zazuliak"]
[Black "Shivagami"]
[Result "1-0"]
[WhiteElo "2346"]
[BlackElo "1793"]
[TimeControl "180+2"]
[EndTime "17:07:49 PST"]
[Termination "Zazuliak won by checkmate"]

1. d4 {[%clk 0:03:00.9]} 1... Nf6 {[%clk 0:02:59.7]} 2. c4 {[%clk 0:03:01.3]}
2... g6 {[%clk 0:03:00.8]} 3. Nc3 {[%clk 0:03:01.7]} 3... d5 {[%clk 0:03:02.5]}
4. Bf4 {[%clk 0:03:00]} 4... Bg7 {[%clk 0:03:02.8]} 5. e3 {[%clk 0:03:00.8]}
5... O-O {[%clk 0:03:03.4]} 6. Nf3 {[%clk 0:03:00.8]} 6... c5 {[%clk 0:03:04.6]}
7. dxc5 {[%clk 0:02:54.6]} 7... Na6 {[%clk 0:03:04.8]} 8. cxd5 {[%clk
0:02:48.9]} 8... Nxc5 {[%clk 0:02:56.2]} 9. Be5 {[%clk 0:02:48.2]} 9... Qa5
{[%clk 0:02:37]} 10. Be2 {[%clk 0:02:31.6]} 10... Rd8 {[%clk 0:02:33.6]} 11. O-O
{[%clk 0:02:26.3]} 11... Bf5 {[%clk 0:02:24.5]} 12. Rc1 {[%clk 0:02:11.2]} 12...
Nfe4 {[%clk 0:02:20.7]} 13. Bxg7 {[%clk 0:02:10]} 13... Kxg7 {[%clk 0:02:21.1]}
14. Qd4+ {[%clk 0:02:01.9]} 14... Kg8 {[%clk 0:02:21.8]} 15. b4 {[%clk
0:01:51.8]} 15... Nxc3 {[%clk 0:02:03.4]} 16. Qxc3 {[%clk 0:01:20.7]} 16... Qxa2
{[%clk 0:01:58.1]} 17. Bc4 {[%clk 0:01:20.7]} 17... Qa4 {[%clk 0:01:39.5]} 18.
bxc5 {[%clk 0:01:18.5]} 18... Rac8 {[%clk 0:01:39.8]} 19. Qd4 {[%clk 0:01:11]}
19... Qa5 {[%clk 0:01:37.5]} 20. Be2 {[%clk 0:01:04.3]} 20... Be6 {[%clk
0:00:58.2]} 21. e4 {[%clk 0:01:02.4]} 21... f5 {[%clk 0:00:45.6]} 22. Ng5 {[%clk
0:00:51.7]} 22... Bf7 {[%clk 0:00:42.7]} 23. Nxf7 {[%clk 0:00:51.3]} 23... Kxf7
{[%clk 0:00:44.6]} 24. exf5 {[%clk 0:00:51.8]} 24... gxf5 {[%clk 0:00:45.8]} 25.
Bh5+ {[%clk 0:00:51.7]} 25... Kf8 {[%clk 0:00:45.6]} 26. Qe5 {[%clk 0:00:48.8]}
26... Kg8 {[%clk 0:00:39.1]} 27. Qxf5 {[%clk 0:00:41.6]} 27... Rxc5 {[%clk
0:00:40.2]} 28. Bf7+ {[%clk 0:00:37.4]} 28... Kg7 {[%clk 0:00:40.2]} 29. Be6
{[%clk 0:00:30.5]} 29... Rf8 {[%clk 0:00:36.5]} 30. Qg5+ {[%clk 0:00:29.3]}
30... Kh8 {[%clk 0:00:36]} 31. Qxe7 {[%clk 0:00:28.1]} 31... Rd8 {[%clk
0:00:20.9]} 32. Qf6# {[%clk 0:00:27.7]} 1-0

[Event "*** Titled Tuesday 3|2 Blitz"]
[Site "Chess.com"]
[Date "2016.03.01"]
[Round "1"]
[White "IMRosen"]
[Black "Izoria123"]
[Result "0-1"]
[WhiteElo "2274"]
[BlackElo "2559"]
[TimeControl "180+2"]
[EndTime "17:08:12 PST"]
[Termination "Izoria123 won by resignation"]

1. d4 {[%clk 0:03:00.2]} 1... Nf6 {[%clk 0:03:00]} 2. Nf3 {[%clk 0:03:01.8]}
2... g6 {[%clk 0:03:01.3]} 3. c4 {[%clk 0:03:01.8]} 3... Bg7 {[%clk 0:03:02.9]}
4. Nc3 {[%clk 0:03:03.4]} 4... O-O {[%clk 0:03:03.2]} 5. Bg5 {[%clk 0:03:05]}
5... c5 {[%clk 0:03:02.6]} 6. d5 {[%clk 0:03:05.6]} 6... b5 {[%clk 0:02:57.7]}
7. cxb5 {[%clk 0:03:05]} 7... a6 {[%clk 0:02:58.2]} 8. e4 {[%clk 0:02:54]} 8...
axb5 {[%clk 0:02:49]} 9. Bxb5 {[%clk 0:02:41.4]} 9... Nxe4 {[%clk 0:02:45.2]}
10. Nxe4 {[%clk 0:02:24]} 10... Qa5+ {[%clk 0:02:45.7]} 11. Nc3 {[%clk
0:02:25.7]} 11... Bxc3+ {[%clk 0:02:45.5]} 12. bxc3 {[%clk 0:02:27.6]} 12...
Qxb5 {[%clk 0:02:46.7]} 13. Qe2 {[%clk 0:02:07]} 13... Qxe2+ {[%clk 0:02:46.7]}
14. Kxe2 {[%clk 0:02:08.9]} 14... Ba6+ {[%clk 0:02:42.4]} 15. Kd2 {[%clk
0:02:05.1]} 15... f6 {[%clk 0:02:42.3]} 16. Bh6 {[%clk 0:02:05.5]} 16... Re8
{[%clk 0:02:39.1]} 17. Rhe1 {[%clk 0:01:49.5]} 17... d6 {[%clk 0:02:35.2]} 18.
Re4 {[%clk 0:01:22.1]} 18... Nd7 {[%clk 0:02:23.6]} 19. Rb1 {[%clk 0:01:17.5]}
19... f5 {[%clk 0:02:01.5]} 20. Ra4 {[%clk 0:01:05.9]} 20... Nf6 {[%clk
0:02:01.6]} 21. Rb6 {[%clk 0:01:06.4]} 21... Ne4+ {[%clk 0:01:52.5]} 22. Kc2
{[%clk 0:00:36.7]} 22... Bd3+ {[%clk 0:01:51.4]} 23. Kb3 {[%clk 0:00:30.8]}
23... Bc2+ {[%clk 0:01:47.5]} 24. Kxc2 {[%clk 0:00:32.4]} 24... Rxa4 {[%clk
0:01:48]} 25. Kb3 {[%clk 0:00:16.8]} 25... Rea8 {[%clk 0:01:45.3]} 26. Rb7
{[%clk 0:00:09.4]} 26... c4+ {[%clk 0:01:42.2]} 27. Kc2 {[%clk 0:00:08.9]} 27...
Rxa2+ {[%clk 0:01:43.1]} 28. Rb2 {[%clk 0:00:10.5]} 28... Rxb2+ {[%clk
0:01:39.8]} 29. Kxb2 {[%clk 0:00:12.4]} 29... Nxf2 {[%clk 0:01:40.2]} 30. Nd4
{[%clk 0:00:13.7]} 30... Ne4 {[%clk 0:01:37.3]} 31. Be3 {[%clk 0:00:08.3]} 31...
Nf6 {[%clk 0:01:37.4]} 32. Nc6 {[%clk 0:00:08.1]} 32... Nxd5 {[%clk 0:01:37.7]}
33. Bd4 {[%clk 0:00:09.6]} 33... e5 {[%clk 0:01:37.5]} 34. Bf2 {[%clk
0:00:10.6]} 34... Kf7 {[%clk 0:01:37.6]} 35. Bh4 {[%clk 0:00:09.2]} 35... Ke6
{[%clk 0:01:37.8]} 36. Nd8+ {[%clk 0:00:09.9]} 36... Rxd8 {[%clk 0:01:37]} 37.
Bxd8 {[%clk 0:00:11.8]} 37... Ne3 {[%clk 0:01:37.6]} 38. g3 {[%clk 0:00:13]}
38... Ng2 {[%clk 0:01:36.4]} 39. Bg5 {[%clk 0:00:12.3]} 39... f4 {[%clk
0:01:36.5]} 40. gxf4 {[%clk 0:00:09.3]} 40... Nxf4 {[%clk 0:01:37]} 41. Kc2
{[%clk 0:00:09.8]} 41... Kd5 {[%clk 0:01:36.4]} 42. Be7 {[%clk 0:00:09.4]} 42...
Ne6 {[%clk 0:01:35.5]} 43. Kd2 {[%clk 0:00:10.4]} 43... Nc5 {[%clk 0:01:36.5]}
44. h4 {[%clk 0:00:08.3]} 44... Ne4+ {[%clk 0:01:36.1]} 45. Kc2 {[%clk
0:00:09.6]} 45... Ke6 {[%clk 0:01:37.6]} 46. Bd8 {[%clk 0:00:10.4]} 46... Kf5
{[%clk 0:01:37.8]} 47. Be7 {[%clk 0:00:09.4]} 47... Kg4 {[%clk 0:01:38.2]} 48.
Kb2 {[%clk 0:00:07.7]} 48... h6 {[%clk 0:01:36.9]} 49. Kc2 {[%clk 0:00:08.7]}
49... g5 {[%clk 0:01:36.9]} 50. hxg5 {[%clk 0:00:10.6]} 50... hxg5 {[%clk
0:01:38.4]} 51. Kd1 {[%clk 0:00:10.5]} 51... Kf3 {[%clk 0:01:39.1]} 52. Ke1
{[%clk 0:00:10.7]} 52... g4 {[%clk 0:01:40.1]} 53. Kf1 {[%clk 0:00:12.2]} 53...
g3 {[%clk 0:01:41.1]} 54. Kg1 {[%clk 0:00:13.6]} 54... Nxc3 {[%clk 0:01:41.1]}
55. Bxd6 {[%clk 0:00:14.9]} 55... Ne2+ {[%clk 0:01:42.1]} 56. Kf1 {[%clk
0:00:13.9]} 56... g2+ {[%clk 0:01:43.6]} 0-1